bitfinex-derivatives/quotes_ETHF0:USTF0_20251005
["timestamp","ask_amount","ask_price","bid_price","bid_amount"]
[1759636124421,1.9283,4558.0,4557.9,0.00189991]
[1759636125408,2.10080646,4558.0,4557.9,0.00189991]
[1759636126824,1.9283,4558.0,4557.9,0.00189991]
[1759636128224,6.9283,4558.0,4557.9,0.00189991]
[1759636128621,1.6392,4557.1,4557.0,1.23169337]
[1759636128923,1.6392,4557.1,4557.0,2.38309337]
[1759636128924,1.8592,4557.1,4557.0,2.38309337]
[1759636129424,1.8592,4557.1,4557.0,1.5993]
[1759636129624,1.8592,4557.1,4557.0,1.60157119]
[1759636130525,1.8592,4557.1,4557.0,0.45017119]
[1759636130724,1.3975,4557.1,4557.0,1.60157119]
[1759636130914,1.8592,4557.1,4557.0,1.60157119]
[1759636131516,0.7207,4557.4,4557.3,0.906]
[1759636131825,0.2891,4558.0,4557.9,1.5993]
[1759636131826,1.6392,4558.0,4557.9,1.5993]
[1759636132025,1.8592,4558.0,4557.9,1.5993]
[1759636132226,1.3975,4558.0,4557.9,1.5993]
[1759636132425,0.6768,4558.0,4557.9,1.5993]
[1759636132724,1.8592,4558.0,4557.9,1.5993]
[1759636133127,2.1483,4558.0,4557.9,0.4479]
[1759636135129,1.6392,4557.7,4557.6,1.53598]
[1759636135327,1.8592,4557.7,4557.6,1.53598]
[1759636136229,1.8592,4557.7,4557.6,1.1412]
[1759636139133,1.8592,4557.7,4557.6,1.5993]
[1759636140431,1.1385,4557.7,4557.2,1.47709337]
[1759636140626,1.6392,4557.3,4557.2,1.1412]
[1759636140822,1.6392,4557.3,4557.0,0.00227119]
[1759636140823,1.8592,4557.3,4557.0,0.00227119]
[1759636141028,2.5882341,4557.1,4557.0,0.00227119]
[1759636141228,1.8592,4557.1,4557.0,0.00227119]
[1759636141523,7.8082341,4557.1,4557.0,0.00227119]
[1759636141732,6.8592,4557.1,4557.0,0.00227119]
[1759636141931,8.2030641,4557.1,4557.0,0.00227119]
[1759636143934,7.8082341,4557.1,4557.0,0.00227119]
[1759636145039,11.0160341,4557.1,4557.0,0.00227119]
[1759636146043,5.067,4557.1,4557.0,0.00227119]
[1759636146250,6.0160341,4557.1,4557.0,0.00227119]
[1759636148951,5.067,4557.1,4557.0,1.15807119]
[1759636149748,4.847,4557.1,4557.0,1.15807119]
[1759636149950,5.067,4557.1,4557.0,1.15807119]
[1759636150344,1.8592,4557.1,4557.0,1.15807119]
[1759636150750,1.6392,4557.1,4557.0,1.15807119]
[1759636150949,1.8592,4557.1,4557.0,1.15807119]
[1759636151444,1.8592,4557.1,4557.0,1.62187119]
[1759636153250,1.8592,4557.1,4557.0,0.47617119]
[1759636153552,5.067,4557.1,4557.0,0.00227119]
[1759636154651,5.067,4557.1,4557.0,0.47617119]
[1759636155150,5.067,4557.1,4557.0,1.15807119]
[1759636156348,5.067,4557.1,4557.0,1.62187119]
[1759636157945,34.243,4557.6,4557.0,1.62187119]
[1759636157946,0.6489,4557.9,4557.1,0.6819]
[1759636158147,0.4345,4557.2,4557.1,4.8274]
[1759636158451,2.7090341,4557.2,4557.0,0.00227119]
[1759636158847,2.7090341,4557.2,4557.0,0.68417119]
[1759636159048,2.7090341,4557.2,4557.1,0.4739]
[1759636159249,1.76,4557.2,4557.1,0.4739]
[1759636159651,1.76,4557.2,4557.1,1.6196]
[1759636161455,0.4566,4558.0,4557.9,1.1558]
[1759636161651,1.1111,4558.0,4557.9,1.1558]
[1759636161851,1.1111,4558.0,4557.9,2.01436]
[1759636162053,1.76,4558.0,4557.9,2.01436]
[1759636162850,3.2078,4558.3,4558.1,1.33243]
[1759636162851,0.4566,4558.2,4558.1,1.33243]
[1759636163054,1.3255,4558.2,4558.1,2.01433]
[1759636163255,2.7090341,4558.2,4558.1,1.6196]
[1759636164257,1.76,4558.2,4558.1,1.6196]
[1759636166554,2.7090341,4558.2,4558.1,1.6196]
[1759636166751,1.76,4558.2,4558.1,1.6196]
[1759636167852,1.76,4558.2,4558.1,1.1457]
[1759636168058,0.8911,4557.7,4557.6,5.22218]
[1759636168259,1.76,4557.7,4557.6,5.22218]
[1759636168763,1.54,4557.4,4557.0,0.00227119]
[1759636168959,1.54,4557.1,4557.0,0.68417119]
[1759636169157,1.76,4557.1,4557.0,1.15807119]
[1759636169454,1.76,4557.1,4557.0,1.62187119]
[1759636169653,2.15483,4557.1,4557.0,0.00227119]
[1759636169855,1.76,4557.1,4557.0,1.62187119]
[1759636170055,1.76,4557.1,4557.0,1.89047119]
[1759636170361,1.76,4557.1,4557.0,2.28530119]
[1759636170362,1.1111,4557.1,4557.0,2.28530119]
[1759636170557,0.6766,4557.1,4557.0,2.28530119]
[1759636170758,1.76,4557.1,4557.0,1.62187119]
[1759636173958,1.76,4557.1,4557.0,0.47617119]
[1759636174367,0.22,4557.1,4557.0,1.88217119]
[1759636174664,1.8233,4557.1,4557.0,1.17597119]
[1759636175258,5.0311,4557.1,4557.0,0.00227119]
[1759636176567,10.0311,4557.1,4557.0,0.00227119]
[1759636179458,1.6033,4555.9,4555.8,1.95009337]
[1759636179655,1.8233,4555.9,4555.8,1.95009337]
[1759636179866,1.8233,4555.9,4555.8,1.1663]
[1759636180366,1.82585453,4555.9,4555.8,1.59886026]
[1759636181568,0.22255453,4555.9,4555.8,1.59886026]
[1759636181768,0.67495453,4555.9,4555.8,1.59886026]
[1759636182161,0.22255453,4555.9,4555.8,1.59886026]
[1759636182364,11.07886265,4555.9,4554.5,3.2078]
[1759636182564,1.3440441,4555.0,4554.9,0.73787841]
[1759636182865,2.02125564,4555.0,4554.9,0.73787841]
[1759636183266,2.02125564,4555.0,4554.9,0.03807841]
[1759636183457,2.02125564,4555.0,4554.9,0.00219304]
[1759636184263,7.02125564,4555.0,4554.9,0.00219304]
[1759636187268,6.5640441,4555.0,4554.9,0.00219304]
[1759636188473,0.39522,4552.6,4552.5,1.8725]
[1759636188768,0.22,4552.6,4552.5,1.8725]
[1759636188973,0.22,4552.6,4552.5,3.12458342]
[1759636189366,0.22170574,4552.6,4552.5,3.12627097]
[1759636189561,0.22170574,4552.6,4552.5,2.69617097]
[1759636189768,2.82683929,4552.6,4552.5,8.12627097]
[1759636189963,0.22170574,4552.6,4552.5,8.12627097]
[1759636190166,1.17073984,4552.6,4552.5,3.12627097]
[1759636190367,1.56595984,4552.6,4552.5,3.12627097]
[1759636190679,0.22170574,4552.6,4552.5,3.12627097]
[1759636192274,0.22170574,4552.6,4552.5,8.12627097]
[1759636193470,0.00170574,4552.6,4552.5,8.12627097]
[1759636193670,0.22270574,4552.6,4552.5,8.12627097]
[1759636193869,3.2078,4553.3,4552.5,6.17438755]
[1759636194175,1.99834,4554.6,4554.5,0.8966]
[1759636194370,2.21934,4554.6,4554.5,0.4665]
[1759636194565,0.39507,4554.3,4554.2,0.6998]
[1759636194771,2.21937,4554.3,4554.2,1.1663]
[1759636194976,3.32215773,4554.3,4554.2,1.5964]
[1759636195371,1.82639625,4554.3,4554.2,1.5964]
[1759636195676,2.22146625,4554.3,4554.2,1.5964]
[1759636196171,0.22309625,4554.3,4554.2,1.5964]
[1759636196779,0.22309625,4554.3,4554.2,6.5964]
[1759636198170,0.00209625,4554.3,4554.2,6.5964]
[1759636198372,0.16409625,4554.3,4554.2,6.5964]
[1759636198766,0.6818,4555.4,4554.2,6.5964]
[1759636198973,0.39498,4555.4,4555.3,1.5964]
[1759636199173,0.61598,4555.4,4555.3,1.5964]
[1759636199472,2.21928,4555.4,4555.3,1.5964]
[1759636199870,2.22188869,4555.4,4555.3,1.5964]
[1759636200678,2.22188869,4555.4,4555.2,3.2078]
[1759636200870,1.6033,4555.3,4555.2,3.2078]
[1759636201470,1.6033,4555.3,4555.2,3.6743]
[1759636201676,1.6033,4555.3,4555.2,4.8042]
[1759636201973,0.9215,4555.3,4555.2,4.8042]
[1759636202172,0.4524,4555.3,4555.2,4.8042]
[1759636202871,0.39758869,4555.4,4555.2,4.1044]
[1759636203072,0.221,4555.3,4555.2,4.8137]
[1759636203670,0.00260869,4555.4,4555.2,4.1044]
[1759636203977,0.00260869,4555.4,4555.3,1.6207]
[1759636204172,0.22360869,4555.4,4555.3,1.6207]
[1759636205377,1.56997,4556.6,4556.5,0.9114]
[1759636205675,1.79097,4556.6,4556.5,1.6207]
[1759636206271,2.25916379,4556.6,4556.5,1.6207]
[1759636206476,2.26128451,4556.6,4556.5,1.6229632]
[1759636206771,2.73538451,4556.6,4556.5,1.6229632]
[1759636207375,0.00212072,4556.6,4556.5,1.9058632]
[1759636207578,0.22312072,4556.6,4556.5,1.9058632]
[1759636208274,1.87232072,4556.6,4556.5,0.0022632]
[1759636208673,0.9543,4556.2,4555.9,0.7093]
[1759636208878,2.04415,4555.7,4555.6,4.8285]
[1759636209181,2.26415,4555.7,4555.6,4.1192]
[1759636209377,2.26415,4555.7,4555.6,3.6498]
[1759636209773,2.26415,4555.7,4555.6,3.65166068]
[1759636210073,2.73233047,4555.7,4555.6,0.00186068]
[1759636212983,2.73233047,4555.7,4554.9,3.2078]
[1759636212984,1.9066,4555.0,4554.9,3.2078]
[1759636213175,2.59478047,4555.0,4554.9,3.2078]
[1759636213872,0.68818047,4555.0,4554.9,4.83036402]
[1759636214977,0.22,4555.0,4554.9,4.83036402]
[1759636216982,0.7002,4555.0,4554.9,4.83036402]
[1759636217783,0.22,4555.0,4554.9,4.83036402]
[1759636231683,0.69087099,4555.0,4554.9,4.83036402]
[1759636231885,1.84527713,4555.0,4554.9,4.83036402]
[1759636232091,2.55817713,4555.0,4554.9,4.12106402]
[1759636232490,2.55817713,4555.0,4554.9,4.81176402]
[1759636233286,2.55817713,4555.0,4554.9,4.12106402]
[1759636233990,2.55817713,4555.0,4554.9,3.65166402]
[1759636235292,2.28447713,4555.0,4554.9,4.80746402]
[1759636235887,2.54367713,4555.0,4554.9,3.65166402]
[1759636243196,2.54367713,4555.0,4554.9,3.20966402]
[1759636243398,2.54367713,4555.0,4554.9,0.00186402]
[1759636245395,0.929,4554.2,4554.1,1.1486]
[1759636245594,2.71775713,4554.2,4554.1,1.1486]
[1759636246198,3.81758404,4554.2,4554.1,0.4506]
[1759636246390,2.0269,4553.9,4553.8,4.3564]
[1759636246590,2.71777713,4553.9,4553.8,4.81637579]
[1759636247897,2.71777713,4553.9,4553.8,1.60857579]
[1759636248098,2.71777713,4553.9,4553.8,0.45277579]
[1759636248894,2.71777713,4553.9,4553.8,0.00217579]
[1759636249805,2.71777713,4553.9,4553.8,0.45277579]
[1759636250005,2.32267713,4553.9,4553.8,1.60857579]
[1759636253006,2.32267713,4553.9,4553.8,0.91057579]
[1759636253599,2.32267713,4553.9,4553.8,0.00217579]
[1759636255907,2.32267713,4553.9,4553.8,0.45277579]
[1759636256508,2.32267713,4553.9,4553.8,0.00217579]
[1759636259811,0.929,4553.0,4552.9,1.6064]
[1759636260008,2.50618,4553.0,4552.9,1.6064]
[1759636260207,2.97951776,4553.0,4552.9,1.6064]
[1759636260408,1.1632,4552.9,4552.8,3.2078]
[1759636260608,2.97784254,4552.9,4552.8,0.4506]
[1759636260813,2.02701,4552.7,4552.6,1.6064]
[1759636261009,2.24701,4552.7,4552.6,1.60911698]
[1759636261710,1.8518,4552.7,4552.6,1.60911698]
[1759636261907,0.39713433,4552.9,4552.8,0.4506]
[1759636261908,0.00193433,4552.9,4552.8,0.4506]
[1759636262113,1.85373433,4552.9,4552.8,4.8142]
[1759636263109,1.85373433,4552.9,4552.8,4.1162]
[1759636264409,1.85373433,4552.9,4552.8,4.7567]
[1759636265908,1.85373433,4552.9,4552.8,4.1162]
[1759636266406,2.32657791,4552.9,4552.8,0.9084]
[1759636267211,2.32664213,4552.9,4552.8,0.9084]
[1759636268113,1.85373433,4552.9,4552.8,0.9084]
[1759636268315,2.32671562,4552.9,4552.8,0.9084]
[1759636269015,1.85373433,4552.9,4552.8,4.7567]
[1759636269207,2.3267601,4552.9,4552.8,4.7567]
[1759636269406,1.85373433,4552.9,4552.8,3.6584]
[1759636270215,2.32655576,4552.9,4552.8,3.6584]
[1759636271007,2.32655576,4552.9,4552.8,1.5488]
[1759636275023,1.5409,4552.7,4552.6,0.00271698]
[1759636275223,3.18557397,4552.7,4552.6,0.00271698]
[1759636275518,3.18557397,4552.7,4552.6,1.53371698]
[1759636281323,1.93617,4552.0,4551.9,1.531]
[1759636281528,3.10802254,4552.0,4551.9,1.531]
[1759636281715,0.221,4552.0,4551.9,1.531]
[1759636281918,0.221,4552.0,4551.9,6.531]
[1759636282325,0.221,4552.0,4551.9,6.53313103]
[1759636285025,0.6441,4552.0,4551.9,1.53313103]
[1759636285329,2.0261,4552.0,4551.9,1.53313103]
[1759636285926,1.7619,4552.0,4551.9,1.53313103]
[1759636286328,2.23627692,4552.0,4551.9,1.53313103]
[1759636287332,3.18712946,4552.0,4551.9,1.53313103]
[1759636287927,3.45132946,4552.0,4551.9,1.53313103]
[1759636288831,2.50047692,4552.0,4551.9,1.53313103]
[1759636289128,2.23627692,4552.0,4551.9,1.53313103]
[1759636289434,2.50047692,4552.0,4551.9,1.53313103]
[1759636289632,2.50047692,4552.0,4551.9,0.00213103]
[1759636289834,2.50047692,4552.0,4551.9,0.43493103]
[1759636290029,7.50047692,4552.0,4551.9,0.00213103]
[1759636290230,10.70827692,4552.0,4551.9,0.00213103]
[1759636290926,11.65912946,4552.0,4551.9,0.00213103]
[1759636291829,8.45132946,4552.0,4551.9,0.00213103]
[1759636294136,1.5289,4551.3,4551.2,3.2078]
[1759636294333,3.57045946,4551.3,4551.2,3.2078]
[1759636295038,3.57045946,4551.3,4551.2,3.20964943]
[1759636296326,3.57045946,4551.3,4551.2,0.00184943]
[1759636297534,2.61960692,4551.3,4551.2,0.00184943]
[1759636299332,7.61960692,4551.3,4551.2,0.00184943]
[1759636300735,1.92431,4550.4,4550.3,1.0888]
[1759636300935,3.09616254,4550.4,4550.3,1.0888]
[1759636301733,3.09616254,4550.4,4550.3,1.09125646]
[1759636302439,3.09616254,4550.4,4550.3,0.44155646]
[1759636302640,3.09616254,4550.4,4550.3,1.54645646]
[1759636303545,1.7499,4550.4,4550.3,1.54645646]
[1759636305338,2.70075254,4550.4,4550.3,1.54645646]
[1759636305541,2.70075254,4550.4,4550.3,0.44155646]
[1759636306237,2.70075254,4550.4,4550.3,1.09125646]
[1759636306743,2.70075254,4550.4,4550.3,0.44155646]
[1759636306944,1.7499,4550.4,4550.3,1.54645646]
[1759636307139,0.221,4550.4,4550.3,1.54645646]
[1759636307947,0.39539,4550.6,4550.3,1.54645646]
[1759636308144,0.221,4550.5,4550.4,1.544]
[1759636308746,0.855,4550.5,4550.4,1.544]
[1759636309045,1.2979,4550.5,4550.4,1.544]
[1759636311341,0.39538,4550.7,4550.6,1.544]
[1759636311541,0.61638,4550.7,4550.6,1.544]
[1759636311741,0.855,4550.7,4550.6,1.544]
[1759636311938,0.221,4550.7,4550.6,1.544]
[1759636313850,1.9242,4551.7,4551.6,1.544]
[1759636314040,1.9242,4551.7,4551.0,0.65485]
[1759636314041,2.19342,4551.5,4551.4,0.4391]
[1759636314248,2.66592323,4551.5,4551.4,0.4391]
[1759636315765,2.27060323,4551.5,4551.4,1.48412]
[1759636316057,2.27060323,4551.5,4551.4,1.93932]
[1759636316058,2.00140323,4551.5,4551.4,1.93932]
[1759636316255,1.54940323,4551.5,4551.4,1.93932]
[1759636316753,0.91540323,4551.5,4551.4,1.93932]
[1759636317062,0.47250323,4551.5,4551.4,1.93932]
[1759636317261,0.47250323,4551.5,4551.4,1.544]
[1759636317262,0.69350323,4551.5,4551.4,1.544]
[1759636317560,0.69350323,4551.5,4551.4,1.93932]
[1759636318462,1.77040323,4551.5,4551.4,1.544]
[1759636319860,1.77040323,4551.5,4551.4,1.93932]
[1759636320059,2.16571323,4551.5,4551.4,1.544]
[1759636320360,2.88691323,4551.5,4551.4,1.544]
[1759636321363,2.49160323,4551.5,4551.4,1.544]
[1759636322063,2.22240323,4551.5,4551.4,1.544]
[1759636324767,1.77040323,4551.5,4551.4,1.544]
[1759636325261,0.69350323,4551.5,4551.4,1.544]
[1759636325662,0.47250323,4551.5,4551.4,1.544]
[1759636325869,1.55255407,4551.8,4551.7,1.4811]
[1759636326165,1.77355407,4551.8,4551.7,1.4811]
[1759636326565,1.77355407,4551.8,4551.7,1.87639]
[1759636326869,2.19385407,4551.8,4551.7,1.87639]
[1759636327571,1.24962,4551.4,4551.2,3.2078]
[1759636327869,2.65112236,4551.3,4551.2,3.2078]
[1759636328070,2.1934213,4551.3,4551.2,3.625]
[1759636328270,2.1934213,4551.3,4551.2,4.273]
[1759636328471,2.1934213,4551.3,4551.2,4.6889]
[1759636329166,2.1934213,4551.3,4551.2,4.0409]
[1759636329566,2.1934213,4551.3,4551.2,4.6889]
[1759636329767,2.1934213,4551.3,4551.2,3.625]
[1759636329965,2.1934213,4551.3,4551.2,4.6889]
[1759636330470,1.7192,4551.3,4551.2,4.6889]
[1759636330861,0.6439,4551.6,4551.2,3.8558]
[1759636331066,1.0779,4551.9,4551.8,1.4811]
[1759636331372,2.19301675,4551.9,4551.8,1.4811]
[1759636331665,1.11771675,4551.9,4551.8,1.87638]
[1759636331863,0.69481675,4551.9,4551.8,1.87638]
[1759636333163,0.69451701,4551.9,4551.8,1.87638]
[1759636333370,0.221,4551.9,4551.8,1.87638]
[1759636333569,1.4982,4552.3,4552.2,1.0652]
[1759636333768,2.19282069,4552.3,4552.2,1.0652]
[1759636333971,2.19282069,4552.3,4552.2,1.4811]
[1759636335173,1.97182069,4552.3,4552.2,1.4811]
[1759636335471,2.19282069,4552.3,4552.2,1.4811]
[1759636335667,1.07983433,4552.9,4552.8,1.8763]
[1759636335868,1.30083433,4552.9,4552.8,5.0841]
[1759636336771,0.22293433,4552.9,4552.8,5.0841]
[1759636341070,0.00193433,4552.9,4552.8,10.0841]
[1759636341276,1.4982,4553.9,4553.8,1.4811]
[1759636341476,1.4982,4553.9,4553.8,1.22821]
[1759636341477,1.5972,4553.9,4553.8,1.22821]
[1759636342277,1.59902747,4553.9,4553.8,1.23081203]
[1759636343382,1.59902747,4553.9,4553.8,0.83570203]
[1759636343578,1.59902747,4553.9,4553.8,0.41980203]
[1759636344785,1.99412747,4553.9,4553.8,0.00260203]
[1759636345378,6.99412747,4553.9,4553.8,0.00260203]
[1759636347883,7.46309499,4553.9,4553.8,0.00260203]
[1759636349280,2.46309499,4553.9,4553.8,0.00260203]
[1759636351182,1.5154,4552.8,4552.7,1.4591]
[1759636351489,1.7354,4552.8,4552.7,1.4591]
[1759636352191,1.7354,4552.8,4552.7,1.46180431]
[1759636353889,1.7354,4552.8,4552.7,0.41160431]
[1759636354082,1.7354,4552.8,4552.7,1.05480431]
[1759636354283,0.8607,4552.8,4552.7,1.49590431]
[1759636354483,0.22,4552.8,4552.7,1.49590431]
[1759636354687,1.7334,4552.8,4552.7,1.49590431]
[1759636354882,1.7334,4552.8,4552.7,0.41160431]
[1759636355087,1.7334,4552.8,4552.7,1.49590431]
[1759636355488,0.22,4552.8,4552.7,1.49590431]
[1759636355988,0.22,4552.8,4552.7,2.59750537]
[1759636357486,0.22,4552.8,4552.7,7.59750537]
[1759636357894,0.6515,4553.8,4552.7,7.59750537]
[1759636357895,1.5134,4553.8,4553.7,0.8694]
[1759636358093,2.11269821,4553.8,4553.7,1.90772]
[1759636359089,1.68809821,4553.8,4553.7,1.90772]
[1759636359794,1.03659821,4553.8,4553.7,1.90772]
[1759636360596,1.68809821,4553.8,4553.7,1.90772]
[1759636360784,0.90659821,4553.8,4553.7,1.90772]
[1759636360985,1.77809821,4553.8,4553.7,1.90772]
[1759636361894,2.20269821,4553.8,4553.7,1.90772]
[1759636362100,1.77809821,4553.8,4553.7,1.90772]
[1759636362394,0.68929821,4553.8,4553.7,1.90772]
[1759636363797,2.20269821,4553.8,4553.7,1.5126]
[1759636364096,2.20269821,4553.8,4553.5,3.2078]
[1759636364097,1.5134,4553.6,4553.5,3.2078]
[1759636364289,0.8619,4552.8,4552.7,0.00270431]
[1759636364492,2.59789821,4552.8,4552.7,0.43100431]
[1759636365197,2.59789821,4552.8,4552.7,0.00270431]
[1759636366400,2.20269821,4552.8,4552.7,0.00270431]
[1759636367003,2.20269821,4552.8,4552.7,0.43100431]
[1759636367502,2.20269821,4552.8,4552.7,0.00270431]
[1759636375493,2.20269821,4552.8,4552.7,1.51530431]
[1759636377504,2.20269821,4552.8,4552.7,0.00270431]
[1759636380605,2.20269821,4552.8,4552.7,1.51530431]
[1759636381904,0.68929821,4552.8,4552.7,2.46658564]
[1759636382109,0.22,4552.8,4552.7,2.46658564]
[1759636382305,1.3088,4552.8,4552.7,1.51530431]
[1759636382808,1.7334,4552.8,4552.7,1.51530431]
[1759636384009,1.7334,4552.8,4552.7,0.00270431]
[1759636384211,2.20314924,4552.8,4552.7,0.00270431]
[1759636385509,5.41094924,4552.8,4552.7,0.00270431]
[1759636392612,6.36223057,4552.8,4552.7,0.00270431]
[1759636392812,1.04808,4551.8,4551.7,3.2078]
[1759636393020,1.5072,4551.4,4551.3,0.4074]
[1759636393317,1.5072,4551.1,4551.0,0.4074]
[1759636393621,2.19760988,4551.1,4551.0,1.4925]
[1759636393822,2.19760988,4551.1,4551.0,1.49533329]
[1759636395712,2.19760988,4551.1,4551.0,0.84993329]
[1759636396022,2.19760988,4551.1,4551.0,0.41023329]
[1759636397017,2.19760988,4551.1,4551.0,0.00283329]
[1759636397417,2.19760988,4551.1,4551.0,0.41023329]
[1759636399513,2.19760988,4551.1,4551.0,0.00283329]
[1759636400127,1.7272,4551.1,4551.0,0.00283329]
[1759636400430,2.67848133,4551.1,4551.0,0.00283329]
[1759636400619,2.67848133,4551.1,4549.5,1.8301862]
[1759636400620,1.5072,4550.1,4550.0,0.4074]
[1759636400814,1.7272,4550.1,4550.0,0.4074]
[1759636401017,1.7272,4550.1,4550.0,1.4925]
[1759636401217,3.2078,4551.1,4550.8,0.4074]
[1759636401416,1.0968,4551.4,4551.3,1.88783]
[1759636401629,1.78827091,4551.4,4551.3,2.84195619]
[1759636401924,0.69147091,4551.4,4551.3,2.84195619]
[1759636402127,0.22177126,4551.4,4551.3,2.84195619]
[1759636402527,1.72897126,4551.4,4551.3,0.00284486]
[1759636402721,2.19863996,4551.4,4551.3,0.00284486]
[1759636403026,2.19863996,4551.4,4551.3,1.49534486]
[1759636403225,1.72897126,4551.4,4551.3,1.49534486]
[1759636404117,2.68025259,4551.4,4551.3,0.00284486]
[1759636404318,3.14983593,4551.4,4551.3,0.00284486]
[1759636404725,2.68025259,4551.4,4551.3,0.00284486]
[1759636405527,3.14962097,4551.4,4551.3,4.86e-06]
[1759636407526,6.03140554,4551.4,4551.3,4.86e-06]
[1759636407724,1.5072,4550.1,4550.0,0.4074]
[1759636407923,1.7272,4550.1,4550.0,0.4074]
[1759636408430,1.5072,4549.8,4549.7,2.39955133]
[1759636408630,1.7272,4549.8,4549.7,2.40170376]
[1759636409031,1.7272,4549.8,4549.7,2.84140376]
[1759636409232,1.7272,4549.8,4549.7,1.89012243]
[1759636409428,1.7272,4549.8,4549.7,2.84140376]
[1759636410719,1.7272,4549.8,4549.7,2.44593376]
[1759636411323,1.7272,4549.8,4549.7,1.49465243]
[1759636411526,2.12266,4549.8,4549.7,1.49465243]
[1759636413327,1.7272,4549.8,4549.7,1.49465243]
[1759636413533,1.7272,4549.8,4549.7,1.45595243]
[1759636414234,1.7272,4549.8,4549.7,0.40955243]
[1759636414534,1.7272,4549.8,4549.7,1.81612243]
[1759636414535,0.22,4549.8,4549.7,1.81612243]
[1759636415127,1.2374,4549.8,4549.7,1.81612243]
[1759636415635,1.2374,4549.8,4549.7,2.76740376]
[1759636416237,1.2374,4549.8,4549.7,1.81612243]
[1759636416433,1.6678,4549.8,4549.7,1.42065243]
[1759636419235,1.6678,4549.8,4549.7,1.01325243]
[1759636419434,1.4478,4549.1,4549.0,4.0145]
[1759636419736,1.6678,4549.1,4549.0,4.6212]
[1759636420335,1.6678,4549.1,4549.0,4.62391758]
[1759636423237,2.06332,4549.1,4549.0,4.62391758]
[1759636423738,2.06332,4549.1,4549.0,4.01721758]
[1759636424238,2.06332,4549.1,4549.0,4.62391758]
[1759636424534,1.6678,4549.1,4549.0,3.21051758]
[1759636424739,1.6678,4549.1,4549.0,3.61281758]
[1759636425743,2.61908133,4549.1,4549.0,3.21051758]
[1759636426041,2.61908133,4549.1,4549.0,0.00271758]
[1759636427237,3.08945759,4549.1,4549.0,0.00271758]
[1759636427537,7.68965759,4549.1,4548.0,3.86441]
[1759636427744,1.0174,4548.1,4548.0,4.6212]
[1759636427931,1.2374,4548.1,4548.0,4.6212]
[1759636428137,1.6678,4548.1,4548.0,4.6212]
[1759636428645,1.67042447,4548.1,4548.0,4.62273802]
[1759636429248,1.67042447,4548.1,4548.0,3.20933802]
[1759636430141,1.67042447,4548.1,4548.0,0.00153802]
[1759636430942,2.6217058,4548.1,4548.0,0.00153802]
[1759636431345,1.67042447,4548.1,4548.0,0.40383802]
[1759636432744,1.67042447,4548.1,4548.0,0.00153802]
[1759636433947,1.67042447,4548.1,4548.0,0.40383802]
[1759636434249,1.67042447,4548.1,4548.0,1.41493802]
[1759636434449,1.67042447,4548.1,4545.1,1.71587045]
[1759636434639,1.67042447,4548.1,4528.7,5.326]
[1759636434640,0.6004,4543.4,4541.5,0.261]
[1759636434842,0.39608,4542.7,4542.6,0.6067]
[1759636435147,1.23022498,4542.7,4542.6,0.17798054]
[1759636435451,1.23022498,4542.7,4542.6,5.1800165]
[1759636435452,2.63735788,4542.7,4542.6,5.1800165]
[1759636435640,0.83598708,4542.7,4542.6,5.1800165]
[1759636435948,0.61498708,4542.7,4542.6,6.13129783]
[1759636436247,0.221,4543.1,4543.0,0.261]
[1759636437138,0.22361128,4543.1,4543.0,0.8677]
[1759636437852,0.22361128,4543.1,4543.0,5.8677]
[1759636438049,0.00261128,4543.1,4543.0,5.8677]
[1759636438355,0.00261128,4543.1,4543.0,0.8677]
[1759636438654,0.00261128,4543.1,4542.6,0.00203596]
[1759636438655,1.01366,4543.0,4542.6,0.00203596]
[1759636438851,0.6176,4543.0,4542.7,0.6067]
[1759636439050,0.22361128,4543.1,4542.7,0.6067]
[1759636439358,0.22361128,4543.1,4543.0,0.261]
[1759636439650,0.00261128,4543.1,4543.0,0.8677]
[1759636441746,3.2078,4544.2,4543.1,0.6067]
[1759636441950,3.2078,4544.7,4544.2,0.6067]
[1759636442153,0.221,4544.8,4544.6,1.4134]
[1759636442348,0.221,4544.8,4544.7,1.4134]
[1759636442550,3.2078,4545.2,4544.6,0.6067]
[1759636442856,3.21011442,4545.2,4544.6,0.6067]
[1759636445847,0.00231442,4545.2,4545.1,0.675]
[1759636446758,0.00231442,4545.2,4545.1,1.594]
[1759636448064,0.6237501,4545.2,4545.1,1.594]
[1759636449061,0.6237501,4545.2,4545.1,6.594]
[1759636450653,0.221,4546.0,4545.9,0.462]
[1759636450952,0.221,4546.0,4545.9,1.594]
[1759636451154,0.39579,4546.1,4545.9,0.919]
[1759636451360,1.08279,4546.1,4546.0,0.675]
[1759636451553,1.08279,4546.1,4546.0,1.594]
[1759636451554,1.54419,4546.1,4546.0,1.594]
[1759636451754,1.54653518,4546.1,4546.0,1.59571702]
[1759636452155,0.39813518,4546.1,4546.0,1.84021702]
[1759636452360,1.15074518,4546.1,4546.0,1.59571702]
[1759636453358,0.46374518,4546.1,4546.0,1.59571702]
[1759636454356,1.61174518,4546.1,4546.0,0.00171702]
[1759636454565,1.83274518,4546.1,4546.0,0.00171702]
[1759636454855,1.31826,4545.2,4545.1,0.462]
[1759636455453,2.00526,4545.2,4545.1,0.462]
[1759636456055,2.00526,4545.2,4544.1,0.675]
[1759636456056,0.687,4545.1,4544.1,0.675]
[1759636456262,1.1484,4544.3,4544.2,0.92152307]
[1759636456856,1.1484,4544.3,4544.2,1.59652307]
[1759636457959,1.6094,4544.3,4544.2,0.92152307]
[1759636458259,1.6094,4544.3,4544.2,0.46452307]
[1759636458463,1.6094,4544.3,4544.2,0.00252307]
[1759636460659,1.8304,4544.3,4544.2,0.00252307]
[1759636461963,1.8304,4544.3,4544.2,0.46452307]
[1759636462766,2.4131011,4544.3,4544.2,0.92152307]
[1759636462967,2.4131011,4544.3,4544.2,1.59652307]
[1759636463663,2.4131011,4544.3,4544.2,0.92152307]
[1759636466062,2.4131011,4544.3,4544.2,1.59652307]
[1759636467564,2.4131011,4544.3,4544.2,0.46452307]
[1759636467766,2.4131011,4544.3,4544.2,0.00252307]
[1759636475070,2.4131011,4544.3,4544.2,0.45812307]
[1759636477173,2.4131011,4544.3,4544.2,0.00252307]
[1759636477371,2.4131011,4544.3,4544.2,0.45812307]